Cogmind - Beta 16.1 @@@ ROGUE MODE // 2026.02.16 @ 14:37:26 Player: Megaknight51 Result: Destroyed by as-10052 with Assembled Heavy Rifle Performance ------------- Evolutions (0) 0 Regions Visited (2) 400 Robots Destroyed (23) 115 Value Destroyed (308) 308 Prototype IDs (3) 60 Alien Tech Used (0) 0 Bonus (0) 0 TOTAL SCORE: 883 Bonus ------- None Cogmind --------- Core Integrity 0/250 Matter 126/300 Energy 86/100 System Corruption 0% Temperature Cool (0) Movement Core (450) Ox8 Location -10/Mines Parts ------- > --- POWER (1) -------- (None) > --- PROPULSION (2) --- (None) > --- UTILITY (2) ------ Large Storage Unit Light Armor Plating > --- WEAPON (2) ------- Light Assault Rifle Light Assault Rifle > --- INVENTORY (15) --- Wheel Wheel Compact Wheel Compact Wheel Heat Sink Sensor Array Signal Interpreter Improved Terrain Scanner Datajack Hammer Peak State ------------ > --- POWER ------------ Light Nuclear Core > --- PROPULSION ------- Light Treads Compact Wheel > --- UTILITY ---------- Large Storage Unit Light Armor Plating > --- WEAPON ----------- Light Assault Rifle Light Assault Rifle > --- INVENTORY -------- Wheel Wheel Compact Wheel Compact Wheel Heat Sink Sensor Array Signal Interpreter Improved Terrain Scanner Light Armor Plating Light Armor Plating Light Armor Plating Light Assault Rifle Grenade Launcher Datajack Hammer [Rating: 10] Favorites ----------- Power Light Ion Engine Engine Light Ion Engine Power Core Light Nuclear Core Propulsion Light Treads Treads Light Treads Wheel Wheel Utility Large Storage Unit Device Seismic Detector Storage Large Storage Unit Protection Light Armor Plating Weapon Light Assault Rifle Ballistic Gun Light Assault Rifle Launcher Grenade Launcher Impact Weapon Hammer Build | -11 -10 -10 ------- Run | Yrd Mat Min Slots Evolved . | . . . Power . | . . . Propulsion . | . . . Utility . | . . . Weapon . | . . . Parts Attached 21 | 7 9 5 Power 3 | 1 1 1 Engine 2 | 1 1 . Core 1 | . . 1 Reactor . | . . . Propulsion 4 | 2 2 . Treads 1 | . 1 . Leg . | . . . Wheel 3 | 2 1 . Hover . | . . . Flight . | . . . Utility 7 | 2 2 3 Device 1 | 1 . . Storage 2 | 1 1 . Processor . | . . . Hackware . | . . . Protection 4 | . 1 3 Artifact . | . . . Weapon 7 | 2 4 1 Energy Gun . | . . . Energy Cannon . | . . . Ballistic Gun 5 | 2 2 1 Ballistic Cannon . | . . . Launcher 1 | . 1 . Special Weapon . | . . . Impact Weapon 1 | . 1 . Slashing Weapon . | . . . Piercing Weapon . | . . . Special Melee Weapon . | . . . Unidentified Prototypes . | . . . Parts Lost 10 | . 2 8 Power 2 | . 1 1 Propulsion 2 | . . 2 Utility 4 | . 1 3 Weapon 2 | . . 2 Highest Loss Streak 8 | . 2 8 To Critical Strikes . | . . . Average Backups 12 | 2 12 14 Power . | 1 . . Propulsion 3 | . 4 4 Utility 4 | . 5 6 Weapon 2 | . 2 2 Tool/Special . | . . . Unused Backups 12 | . 3 9 Power 1 | . 1 . Propulsion 5 | . 1 4 Utility 4 | . . 4 Weapon 1 | . 1 . Tool/Special 1 | . . 1 Average Slot Usage (%) 96 | . 98 93 Engine 10 | . 14 1 Core 3 | . . 10 Treads 11 | . 10 11 Wheel 15 | . 17 12 Device 5 | . 8 . Storage 14 | . 14 14 Protection 7 | . 3 13 Ballistic Gun 26 | . 27 26 Peak Build Rating 10 | 8 8 10 Average Rating 7 | 5 7 9 On Entrance 5 | . 8 8 Avg Prop Armor Cover (%) 10 | . 11 10 Naked Turns . | . . . Heaviest Build 30 | 12 28 30 Greatest Support 20 | 20 20 16 Greatest Overweight (x) 2 | . 2 1 Average Overweight (x) . | . 1 1 Largest Inventory Capacity 15 | 8 15 15 Average Capacity 13 | 7 14 15 Most Carried 15 | 8 15 15 Average Carried 12 | 3 13 14 Final Capacity 15 | 8 15 15 Final Carried 15 | 8 15 10 Class Distribution -------------------- 100% | Mutant Dominant Class ---------------- Mutant | -10/Materials Mutant | -10/Mines Resources | -11 -10 -10 ----------- Run | Yrd Mat Min Matter Collected 505 | 314 134 57 Remotely . | . . . Salvage Created 560 | 155 269 136 Parts 46 | 12 30 4 Haulers Intercepted 1 | . 1 . Recyclers Shooed . | . . . Parts Field Recycled . | . . . Retrieved Matter . | . . . Parts Self-Destructed . | . . . Prevented . | . . . Parts Restored . | . . . Kills | -11 -10 -10 ------- Run | Yrd Mat Min Combat Hostiles Destroyed 23 | . 11 12 Guns 9 | . 7 2 AOE 14 | . 4 10 Classes Destroyed 9 | 3 5 1 Worker 2 | 1 1 . Builder 1 | . 1 . Tunneler 4 | 4 . . Hauler 1 | . 1 . Recycler 1 | 1 . . Watcher 1 | . 1 . Swarmer 9 | . 9 . Grunt 4 | . 2 2 Assembled 10 | . . 10 Best Kill Streak 10 | 5 7 10 Combat Bots Only 10 | . 5 10 Max Kills in Single Turn 4 | 1 3 4 Gunslinging . | . . . Exploded 4 | . 3 4 Melee . | . . . Uniques/NPCs Destroyed 1 | . . 1 YI-UF0 (-10/Mines) Combat | -11 -10 -10 -------- Run | Yrd Mat Min Hostile Shots Fired 137 | . 56 81 Missed 31 | . 13 18 Hits 106 | . 43 63 Melee 7 | . . 7 Projectile 99 | . 43 56 Damage Taken 1374 | 1 396 977 Core 261 | . 64 197 Absorbed by Shields . | . . . Core Remaining (%) 100 | 100 . . Volleys Fired 59 | 11 26 22 Largest 2 | 2 2 2 Hottest 50 | 40 50 50 Shots Fired 116 | 22 52 42 Gun 105 | 22 49 34 Cannon . | . . . Launcher 11 | . 3 8 Special . | . . . Kinetic 105 | 22 49 34 Thermal . | . . . Explosive 11 | . 3 8 Electromagnetic . | . . . Robot Hit Streak 9 | 6 5 9 Robot Miss Streak 6 | 2 6 2 Penetration Max . | . . . Secondary Targets . | . . . Shots Hit Robots 62 | 12 20 30 Core Hits 61 | 8 19 34 Critical Kills . | . . . Critical Parts Destroyed . | . . . Critical Strikes . | . . . Melee Attacks 1 | . 1 . Impact 1 | . 1 . Slashing . | . . . Piercing . | . . . Sneak Attacks . | . . . Combat Hostiles . | . . . Follow-up Attacks . | . . . Damage Inflicted 1572 | 153 494 925 Guns 640 | 150 270 220 Cannons . | . . . Explosions 929 | . 224 705 Melee . | . . . Ramming 3 | 3 . . Kinetic 640 | 150 270 220 Thermal . | . . . Explosive 929 | . 224 705 Electromagnetic . | . . . Impact . | . . . Slashing . | . . . Piercing . | . . . Highest Corruption . | . . . Average Corruption . | . . . Corruption Purged . | . . . Corruption Blocked . | . . . Overload Shots . | . . . Overflow Damage 31 | . 4 27 Projectiles . | . . . Explosions 31 | . 4 27 Melee . | . . . Knockbacks . | . . . Impact . | . . . Kinetic . | . . . Secondary . | . . . Self-Inflicted Damage 97 | 1 42 54 Shots 4 | . 2 2 Rammed 1 | 1 . . Targets Rammed 1 | 1 . . Kicked . | . . . Crushed . | . . . Highest Temperature 50 | . 25 50 Average Temperature 18 | . 10 21 Received Heat Transfer 176 | . 24 152 Siege Activations . | . . . Martial Activations . | . . . Shielding Activations . | . . . Robots Disrupted . | . . . Combat Hostiles . | . . . Robots Corrupted . | . . . Combat Hostiles . | . . . Parts Fried . | . . . Impact Corruptions . | . . . Robots Melted . | . . . Combat Hostiles . | . . . Parts Melted . | . . . Heat Transferred . | . . . Parts Sabotaged . | . . . Parts Stolen . | . . . Parts Stripped . | . . . Power Chain Reactions . | . . . Alert | -11 -10 -10 ------- Run | Yrd Mat Min Maximum Alert Level 1 | . 1 . Low Security (%) 99 | 100 99 100 Level 1 . | . . . Level 2 . | . . . Level 3 . | . . . Level 4 . | . . . Level 5 . | . . . High Security . | . . . Max Security . | . . . Peak Influence 198 | 10 198 110 Initial 70 | . 3 70 Average 65 | 2 86 45 Influence Increases 526 | 30 417 79 Destroy 0b10 Robot/C 260 | . 220 40 Destroy 0b10 Robot/NC 50 | 30 20 . Destroy Leader 54 | . 44 10 Successful Hack 17 | . 17 . Select Force Hacks 60 | . 60 . Disable Machine 15 | . 15 . Destroy Structure 40 | . 11 29 Lose Combat Pursuer 30 | . 30 . Influence Decreases 526 | 25 242 259 Entered New Map 112 | . 2 110 Time Decay 345 | 25 220 100 Lost Part 39 | . 20 19 Lost Ally 30 | . . 30 Squads Dispatched 3 | . 3 . Investigation 3 | . 3 . Extermination . | . . . Reinforcement . | . . . Assault . | . . . Garrison . | . . . Intercept . | . . . Searches Triggered . | . . . Construction Impeded . | . . . Haulers Reinforced . | . . . Active Scanning Responses . | . . . Cargo Convoy Interrupts . | . . . Stealth | -11 -10 -10 --------- Run | Yrd Mat Min Distress Signals 2 | . 2 . Communications Jammed . | . . . Distress Signals . | . . . Times Spotted 39 | . 20 19 Peak Tracking Total 19 | . 7 19 Tactical Retreats 3 | . 2 1 Traps | -11 -10 -10 ------- Run | Yrd Mat Min Traps Triggered 1 | . 1 . Indirectly . | . . . Trap Hack Attempts . | . . . Triggered . | . . . Disarmed . | . . . Reprogrammed . | . . . Reused . | . . . Traps Extracted . | . . . Installed . | . . . Triggered . | . . . Machines | -11 -10 -10 ---------- Run | Yrd Mat Min Machines Disabled 1 | . 1 . Max in Single Turn 1 | . 1 . Machines Repaired . | . . . Machines Dismantled . | . . . Machines Sabotaged . | . . . Overloaded Fab Kills . | . . . Hacking | -11 -10 -10 --------- Run | Yrd Mat Min Machines Accessed 9 | . 9 . Terminals 7 | . 7 . Fabricators . | . . . Repair Stations . | . . . Recycling Units 2 | . 2 . Scanalyzers . | . . . Garrison Access . | . . . Total Hacks 24 | . 24 . Successful 13 | . 13 . Failed 11 | . 11 . Catastrophic . | . . . Database Lockouts . | . . . Manual 19 | . 19 . Terminals 22 | . 22 . Fabricators . | . . . Repair Stations . | . . . Recycling Units 2 | . 2 . Scanalyzers . | . . . Garrison Access . | . . . Terminal Hacks 6 | . 6 . Robot Analysis 2 | . 2 . Prototype ID Bank 2 | . 2 . Terminal Index 1 | . 1 . Hauler Manifests 1 | . 1 . Fabricator Hacks . | . . . Repair Station Hacks . | . . . Recycling Unit Hacks . | . . . Scanalyzer . | . . . Garrison Access Hacks . | . . . Unauthorized Hacks 7 | . 7 . Terminals 5 | . 5 . Botnet 5 | . 5 . Fabricators . | . . . Repair Stations . | . . . Recycling Units 2 | . 2 . Tunnel 2 | . 2 . Scanalyzers . | . . . Garrison Access . | . . . Data Cores Recovered . | . . . Used . | . . . Hacking Detections 7 | . 7 . Full Trace Events . | . . . Feedback Events . | . . . Feedback Blocked . | . . . Robot Schematics Acquired . | . . . Robots Built . | . . . Authchips . | . . . Time . | . . . Total Robot Build Rating . | . . . Part Schematics Acquired . | . . . Parts Built . | . . . Authchips . | . . . Time . | . . . Total Part Build Rating . | . . . Part Studies Acquired . | . . . Parts Repaired . | . . . Time . | . . . Parts Recycled . | . . . Recycled Matter . | . . . Retrieved Matter . | . . . Retrieved Components . | . . . Parts Scanalyzed . | . . . Part Schematics Acquired . | . . . Parts Damaged . | . . . Bothacking | -11 -10 -10 ------------ Run | Yrd Mat Min Used RIF Installer . | . . . Robots Hacked . | . . . Non-combat . | . . . Combat . | . . . Robot Hacks Applied . | . . . Relay Couplers Released . | . . . Fabnet Peak Effective % . | . . . Robots Rewired . | . . . Allies Hacked . | . . . Hacks Repelled . | . . . Allies | -11 -10 -10 -------- Run | Yrd Mat Min Total Allies 3 | . . 3 Largest Group 3 | . . 3 Highest-Rated Group 40 | . . 40 Highest-Rated Ally 16 | . . 16 Total Orders . | . . . Ally Attacks 11 | . . 11 Total Damage 127 | . . 127 Kills 1 | . . 1 Allies Corrupted . | . . . Allies Melted . | . . . Intel | -11 -10 -10 ------- Run | Yrd Mat Min Active Infowar (turns) 376 | 41 335 . Seismic 376 | 41 335 . Robot Analysis Total 2 | . 2 . Derelict Logs Recovered 1 | . . 1 Drone Launches . | . . . Drone Recoveries . | . . . Exploration | -11 -10 -10 ------------- Run | Yrd Mat Min Turns Passed 982 | 115 592 275 Spaces Moved 712 | 86 445 181 Core 12 | 12 . . Treads . | . . . Legs . | . . . Wheels 700 | 74 445 181 Hover . | . . . Flight . | . . . Fastest Speed 50 | 50 80 115 Average Speed 104 | 75 105 115 Slowest Speed 115 | 80 115 115 Overloaded Moves . | . . . Propulsion Burnouts . | . . . Robots Hopped . | . . . Potential Cave-ins . | . . . Cave-ins Triggered . | . . . Exploration Rate (%) 47 | 5 84 53 Regions Visited 2 Branch Regions 1 Pre-discovered Areas 3 | . 2 1 Known Exits Taken . | . . . Unknown Exits Taken 2 | 1 1 . Scrap Searched . | . . . Spaces Dug 4 | . 4 . Terrain Destroyed 46 | . 10 36 Melee . | . . . Projectile . | . . . AOE 46 | . 10 36 Terrain Rammed . | . . . Walls Destroyed . | . . . Machines Disabled . | . . . Actions | -11 -10 -10 --------- Run | Yrd Mat Min Total 848 | 112 521 215 Wait 22 | . 18 4 Move 711 | 86 444 181 Hop . | . . . Pick Up 21 | 8 13 . Fast Attach 7 | 7 . . Attach 7 | . 2 5 Detach . | . . . Swap 11 | . 9 2 Drop 9 | . 8 1 Fire 59 | 11 26 22 Melee 1 | . 1 . Ram . | . . . Kick . | . . . Crush . | . . . Escape Stasis . | . . . Rewire . | . . . Trap . | . . . Miscellaneous . | . . . Route ------- -11/Scrapyard -10/Materials (discovered 3 exits: [*Mat] / [*Min x2]) -10/Mines History --------- Turn | Location | Event 7 | -11/Scrapyard | Discovered new exit (range 15) 116 | -11/Scrapyard | Entered Materials 186 | -10/Materials | Discovered new exit (range 7) 286 | -10/Materials | Discovered new exit (range 16) 317 | -10/Materials | Build established: Mutant 653 | -10/Materials | Discovered new exit (range 8) 708 | -10/Materials | Entered Mines 753 | -10/Mines | Assisted by bots powering up and referring to "LRC-V3" 800 | -10/Mines | Learned location of Mines (-8) 811 | -10/Mines | Allies destroyed YI-UF0 934 | -10/Mines | Assembled infested the area 967 | -10/Mines | Core integrity fell below 50% 975 | -10/Mines | Core integrity fell below 20% 983 | -10/Mines | Destroyed by as-10052 with Assembled Heavy Rifle Last Messages --------------- 00950_ Destroyed Asb. Hover Unit. 00950_ as-78348 destroyed. 00950_ as-96205 destroyed. 00950_ as-08651 destroyed. 00952_ Com. Wheel destroyed. 00953_ as-63257 destroyed. 00955_ as-72180 destroyed. 00955_ as-12796 destroyed. 00957_ Lgt. Armor Plating destroyed. 00958_ Lgt. Nuclear Core destroyed. 00961_ as-36029 destroyed. 00962_ The unstable cave ceiling collapses. 00962_ as-36660 destroyed. 00963_ Knocked back. 00965_ Lgt. Armor Plating destroyed. 00965_ as-78907 destroyed. 00965_ Lgt. Assault Rifle destroyed. 00969_ Grenade Launcher destroyed. 00979_ Lgt. Armor Plating destroyed. 00983_ Destroyed Asb. Hover Unit. Map ----- +----------------------------------------------------+ | | | | | | | | | | | | | | | | | | | ?????????????????????????????????????? | | ?????????????????????????????????????? | | ????????????####?????????????????????? | | ???????????## ###############???????? | | ???????????# #???????? | | ##????????## #???????? | | #####????# ### ####### ######??? | | ###?## #?# #?????# ## ##?? | | ### ##?# #?????# ## #?? | | ###??# #?????# #?# #?? | | ##??### ###???# ### #?? | | ##?### ##?# ## #?? | | # ##?## #?# ## #?? | | #####??? t #?# #?? | | ##?????????? ### #?? | | ##??????????? ## #### ##?? | | # ####????????#?# @ ##?# #??? | | ##?????????# a ### ##?? | | #????????## #?? | | #???????## #?? | | # # ##??????## a ##?? | | # ## ####??????## ####??? | | ############# #####?????? | | ##?????????? | | #??????????? | | ####### ##### # #??????????? | | "" ##???????????# ??????????? | | "" #????????????# a ??????????? | | "" ##????????????## ??????????? | | ##?????????????# ####??????????? | | #?????????????###aa#?????????????? | | #??????????????# #?????????????? | | # #?????????????# #?????????????? | | ?# #?????????????# ??????????????? | | ?? #???????????? ??????????????? | | ?? #???????????? ??????????????? | | ??# ##???????????? ??????????????? | | ???## #????????????? ??????????????? | | ##### #????????????? ??????????????? | | #????????????? ??????????????? | | #####????????????????????????????????? | +----------------------------------------------------+ Best States ------------- Heat Dissipation 25 Energy Generation 14 Energy Capacity 160 Matter Stores 300 Matter Capacity 300 Sight Range 16 Terrain Scan Density 10 Armor Coverage 150 Evasion (%) 50 Recoil Reduction 1 Item Schematics ----------------- None Robot Schematics ------------------ None Fabricated ------------ Nothing Repaired ---------- Nothing Studied --------- None Alien Tech Used ----------------- None Achievements -------------- None Challenges ------------ None Game ------ Seed VampiricHelicalExtractor Manual? 0 Play Time 00:08:57 Cumulative 76.0 hours Start 2026.02.16 @ 14:27:59 End 2026.02.16 @ 14:37:26 Sessions 1 Manual Loads 0 Difficulty Rogue Special Mode None Game No. 160 Rogue 160 Adventurer 0 Explorer 0 Win Type - Total 1 Types 1/0/0/0/0/0/0/0/0/0 Lore% 49 Gallery% 37 Achievement% 36 Wizard Run 0 Options --------- Layout 0 ASCII 0 Keyboard 1 Movement Arrows Keybinds 0 Fullscreen 1 Font 18/Smallcaps Map View 38x25 Zoom Use 27% Tactical HUD 1 Map Filters NONE Filters NONE Steam 1 RUN: 20bc6dc5-5b0b-493a-a49b-673076efa63f